fUSD/lending_fUSD_20240121
["ID","MTS","AMOUNT","RATE_DAILY","PERIOD"]
[312417940,1705863137081,-1596.09,0.00044931,31]
[312417941,1705863137090,-708.09,0.00044931,31]
[312417942,1705863137100,-898.19,0.00044931,31]
[312417943,1705863137109,-500.0,0.00044931,31]
[312417944,1705863137119,-570.27,0.00044931,31]
[312417945,1705863137129,-5449.29,0.00044931,31]
[312417946,1705863137138,-2144.35,0.00044931,31]
[312417947,1705863137148,-500.0,0.00044931,31]
[312417948,1705863137157,-500.0,0.00044931,31]
[312417949,1705863137167,-602.09,0.00044931,31]
[312417950,1705863137177,-501.79,0.00044931,31]
[312417951,1705863137186,-540.23978024,0.00044931,31]
[312417952,1705863137195,-500.0,0.00044931,31]
[312417953,1705863137205,-2566.96,0.00044931,31]
[312417954,1705863137215,-754.18,0.00044931,31]
[312417955,1705863137225,-1568.48,0.00044931,31]
[312417956,1705863137234,-1393.43,0.00044931,31]
[312417957,1705863137244,-14027.91,0.00044931,31]
[312417958,1705863137254,-500.0,0.00044931,31]
[312417959,1705863137263,-500.0,0.00044931,31]
[312417960,1705863137272,-927.78,0.00044931,31]
[312417961,1705863137282,-528.44169756,0.00044931,31]
[312417962,1705863137292,-500.0,0.00044931,31]
[312417963,1705863137301,-500.0,0.00044931,31]
[312417964,1705863137311,-1492.21,0.00044931,31]
[312417965,1705863137321,-20533.6,0.00044931,31]
[312417966,1705863137330,-866.78,0.00044931,31]
[312417967,1705863137339,-872.52,0.00044931,31]
[312417968,1705863137349,-1000.0,0.00044931,31]
[312417969,1705863137358,-2714.75,0.00044931,31]
[312417970,1705863137367,-500.0,0.00044931,31]
[312417971,1705863137376,-2856.96,0.00044931,31]
[312417972,1705863137386,-500.0,0.00044931,31]
[312417973,1705863137395,-500.0,0.00044931,31]
[312417974,1705863137404,-500.0,0.00044931,31]
[312417975,1705863137414,-618.09,0.00044931,31]
[312417976,1705863137424,-500.0,0.00044931,31]
[312417977,1705863137433,-585.59,0.00044931,31]
[312417978,1705863137442,-838.89,0.00044931,31]
[312417979,1705863137452,-38187.45,0.00044931,31]
[312417980,1705863137462,-500.0,0.00044931,31]
[312417981,1705863137471,-1815.38,0.00044931,31]
[312417982,1705863137481,-3481.81,0.00044931,31]
[312417983,1705863137491,-506.98,0.00044931,31]
[312417984,1705863137500,-5257.49,0.00044931,31]
[312417985,1705863137510,-500.0,0.00044931,31]
[312417986,1705863137520,-500.0,0.00044931,31]
[312417987,1705863137530,-500.0,0.00044931,31]
[312417988,1705863137539,-500.0,0.00044931,31]
[312417989,1705863137550,-500.0,0.00044931,10]
[312417990,1705863137559,-2462.22,0.00044931,31]
[312417991,1705863137569,-522.8,0.00044931,31]
[312417992,1705863137578,-491.7323673,0.00044931,31]
[312417993,1705863137588,-500.0,0.00044931,31]
[312417994,1705863137598,-2726.66,0.00044931,31]
[312417995,1705863137607,-500.0,0.00044931,31]
[312417996,1705863137618,-500.0,0.00044931,31]
[312417997,1705863137628,-9964.37,0.00044931,31]
[312417998,1705863137638,-4646.58,0.00044931,31]
[312417999,1705863137648,-1256.11,0.00044931,31]
[312418000,1705863137657,-569.32,0.00044931,31]
[312418001,1705863137668,-563.04,0.00044931,31]
[312418002,1705863137685,-1625.17,0.00044931,31]
[312418003,1705863137694,-1597.74,0.00044931,31]
[312418004,1705863137704,-1521.04,0.00044931,31]
[312418005,1705863137713,-945.78,0.00044931,31]
[312418006,1705863137724,-544.69,0.00044931,31]
[312418007,1705863137734,-1325.95,0.00044931,31]
[312418008,1705863137744,-1638.27,0.00044931,31]
[312418009,1705863137756,-722.86,0.00044931,31]
[312418010,1705863137765,-2479.49,0.00044931,31]
[312418011,1705863137775,-2862.9,0.00044931,31]
[312418012,1705863137785,-781.61,0.00044931,31]
[312418013,1705863137794,-1020.59,0.00044931,31]
[312418014,1705863137804,-500.0,0.00044931,31]
[312418015,1705863137813,-500.0,0.00044931,31]
[312418016,1705863137823,-500.0,0.00044931,31]
[312418017,1705863137833,-13684.18,0.00044931,31]
[312418018,1705863137844,-500.0,0.00044931,31]
[312418019,1705863137855,-688.84,0.00044931,31]
[312418020,1705863137865,-1661.63,0.00044931,31]
[312418021,1705863137876,-500.0,0.00044931,31]
[312418022,1705863137887,-2128.7,0.00044931,31]
[312418023,1705863137896,-4867.58,0.00044931,31]
[312418024,1705863137906,-2953.84,0.00044931,31]
[312418025,1705863137916,-500.0,0.00044931,31]
[312418026,1705863137925,-500.0,0.00044931,31]
[312418027,1705863137935,-500.0,0.00044931,31]
[312418028,1705863137945,-3193.31,0.00044931,31]
[312418029,1705863137955,-687.4,0.00044931,31]
[312418030,1705863137965,-1215.74,0.00044931,31]
[312418031,1705863137974,-500.0,0.00044931,31]
[312418032,1705863137983,-3100.08,0.00044931,31]
[312418033,1705863137993,-500.0,0.00044931,31]
[312418034,1705863138003,-1445.08,0.00044931,31]
[312418035,1705863138012,-500.0,0.00044931,31]
[312418036,1705863138021,-500.0,0.00044931,31]
[312418037,1705863138030,-4139.67,0.00044931,31]
[312418038,1705863138040,-598.34,0.00044931,31]
[312418039,1705863138050,-916.15,0.00044931,31]
[312418040,1705863138059,-500.0,0.00044931,31]
[312418041,1705863138069,-500.0,0.00044931,31]
[312418042,1705863138078,-710.29,0.00044931,31]
[312418043,1705863138088,-500.0,0.00044931,31]
[312418044,1705863138097,-5676.64,0.00044931,31]
[312418045,1705863138107,-2001.23,0.00044931,31]
[312418046,1705863138117,-2149.06,0.00044931,31]
[312418047,1705863138126,-940.56,0.00044931,31]
[312418048,1705863138136,-500.0,0.00044931,31]
[312418049,1705863138145,-4833.56,0.00044931,31]
[312418050,1705863138155,-506.94,0.00044931,31]
[312418051,1705863138164,-970.56,0.00044931,31]
[312418052,1705863138174,-2423.36,0.00044931,31]
[312418053,1705863138183,-1219.52,0.00044931,31]
[312418054,1705863138193,-552.22303307,0.00044931,31]
[312418055,1705863138203,-1862.24,0.00044931,31]
[312418056,1705863138213,-500.0,0.00044931,31]
[312418057,1705863138223,-1187.95,0.00044931,31]
[312418058,1705863138233,-1829.93,0.00044931,31]
[312418059,1705863138242,-500.0,0.00044931,31]
[312418060,1705863138252,-578.39,0.00044931,31]
[312418061,1705863138261,-14384.99,0.00044931,31]
[312418062,1705863138270,-1213.94,0.00044931,31]
[312418063,1705863138295,-639.46,0.00044931,31]
[312418064,1705863138314,-709.99,0.00044931,31]
[312418065,1705863138333,-625.46,0.00044931,31]
[312418066,1705863138353,-3268.88,0.00044931,31]
[312418067,1705863138371,-648.75,0.00044931,31]
[312418068,1705863138389,-975.48,0.00044931,31]
[312418069,1705863138407,-755.56,0.00044931,31]
[312418070,1705863138428,-500.0,0.00044931,31]
[312418071,1705863138446,-2329.16,0.00044931,31]
[312418072,1705863138466,-1678.3,0.00044931,31]
[312418073,1705863138487,-500.0,0.00044931,31]
[312418074,1705863138500,-558.66,0.00044931,31]
[312418075,1705863138517,-1401.81,0.00044931,31]
[312418076,1705863138533,-500.0,0.00044931,31]
[312418077,1705863138550,-1639.58,0.00044931,31]
[312418078,1705863138569,-894.48,0.00044931,31]
[312418079,1705863138586,-687.4,0.00044931,31]
[312418080,1705863138604,-1615.83,0.00044931,31]
[312418081,1705863138623,-1087.01,0.00044931,31]
[312418082,1705863138639,-500.0,0.00044931,31]
[312418083,1705863138655,-1031.2,0.00044931,31]
[312418084,1705863138672,-531.01,0.00044931,31]
[312418085,1705863138689,-2511.72,0.00044931,31]
[312418086,1705863138704,-1748.22,0.00044931,31]
[312418087,1705863138721,-4456.07,0.00044931,31]
[312418088,1705863138736,-500.0,0.00044931,31]
[312418089,1705863138752,-500.0,0.00044931,31]
[312418090,1705863138768,-500.0,0.00044931,31]
[312418091,1705863138783,-579.06,0.00044931,31]
[312418092,1705863138799,-3850.98,0.00044931,31]
[312418093,1705863138816,-3629.07,0.00044931,31]
[312418094,1705863138832,-500.0,0.00044931,31]
[312418095,1705863138847,-726.07,0.00044931,31]
[312418096,1705863138864,-5194.93,0.00044931,31]
[312418097,1705863138878,-1150.49,0.00044931,31]
[312418098,1705863138894,-3411.41,0.00044931,31]
[312418099,1705863138910,-3377.74,0.00044931,31]
[312418100,1705863138925,-1943.47,0.00044931,31]
[312418101,1705863138940,-1108.56,0.00044931,31]
[312418102,1705863138956,-500.0,0.00044931,31]
[312418103,1705863138971,-500.0,0.00044931,31]
[312418104,1705863138987,-620.5,0.00044931,31]
[312418105,1705863139002,-1379.23,0.00044931,31]
[312418106,1705863139018,-965.9,0.00044931,31]
[312418107,1705863139034,-825.6,0.00044931,31]
[312418108,1705863139050,-3791.82,0.00044931,31]
[312418109,1705863139066,-1532.88,0.00044931,31]
[312418110,1705863139081,-1797.81,0.00044931,31]
[312418111,1705863139096,-5971.46,0.00044931,31]
[312418112,1705863139111,-500.0,0.00044931,31]
[312418113,1705863139126,-500.0,0.00044931,31]
[312418114,1705863139141,-500.0,0.00044931,31]
[312418115,1705863139156,-597.64,0.00044931,31]
[312418116,1705863139171,-554.71,0.00044931,31]
[312418117,1705863139187,-843.24,0.00044931,31]
[312418118,1705863139202,-505.05,0.00044931,31]
[312418119,1705863139218,-500.0,0.00044931,31]
[312418120,1705863139234,-1011.31,0.00044931,31]
[312418121,1705863139250,-500.0,0.00044931,31]
[312418122,1705863139266,-500.0,0.00044931,31]
[312418123,1705863139281,-1242.18,0.00044931,31]
[312418124,1705863139298,-500.0,0.00044931,60]
[312418125,1705863139315,-500.0,0.00044931,15]
[312418126,1705863139332,-31979.27,0.00044931,31]
[312418127,1705863139348,-1802.54,0.00044931,31]
[312418128,1705863139364,-500.0,0.00044931,31]
[312418129,1705863139379,-724.71,0.00044931,31]
[312418130,1705863139394,-2046.63,0.00044931,31]
[312418131,1705863139410,-1903.42,0.00044931,31]
[312418132,1705863139425,-1209.74,0.00044931,31]
[312418133,1705863139441,-4903.09,0.00044931,31]
[312418134,1705863139457,-500.0,0.00044931,31]
[312418135,1705863139472,-1146.65,0.00044931,31]
[312418136,1705863139487,-2442.87,0.00044931,31]
[312418137,1705863139502,-500.0,0.00044931,31]
[312418138,1705863139519,-2526.05,0.00044931,31]
[312418139,1705863139535,-2162.48,0.00044931,31]
[312418140,1705863139550,-1626.96,0.00044931,31]
[312418141,1705863139565,-1000.0,0.00044931,2]
[312418142,1705863139579,-1812.71,0.00044931,31]
[312418143,1705863139594,-500.0,0.00044931,31]
[312418144,1705863139609,-509.47,0.00044931,31]
[312418145,1705863139624,-807.78,0.00044931,31]
[312418146,1705863139638,-638.08,0.00044931,31]
[312418147,1705863139653,-4768.84,0.00044931,31]
[312418148,1705863139669,-500.0,0.00044931,31]
[312418149,1705863139687,-500.0,0.00044931,31]
[312418150,1705863139702,-202.63696363,0.00044931,31]
[312418151,1705863139718,-23111.4,0.00044931,31]
[312418152,1705863139734,-641.88,0.00044931,31]
[312418153,1705863139750,-2345.39,0.00044931,31]
[312418154,1705863139765,-1543.52,0.00044931,31]
[312418155,1705863139780,-500.0,0.00044931,31]
[312418156,1705863139795,-2539.24,0.00044931,31]
[312418157,1705863139809,-4085.26,0.00044931,31]
[312418158,1705863139825,-500.0,0.00044931,31]
[312418159,1705863139841,-500.0,0.00044931,2]
[312418160,1705863139857,-500.0,0.00044931,31]
[312418161,1705863139872,-1053.53,0.00044931,31]
[312418162,1705863139887,-500.0,0.00044931,31]
[312418163,1705863139901,-1444.4,0.00044931,31]
[312418164,1705863139917,-1203.58,0.00044931,31]
[312418165,1705863139932,-8334.75,0.00044931,31]
[312418166,1705863139948,-1170.03,0.00044931,31]
[312418167,1705863139964,-3868.82,0.00044931,31]
[312418168,1705863139978,-1290.9,0.00044931,31]
[312418169,1705863139993,-751.65,0.00044931,31]
[312418170,1705863140010,-2604.67,0.00044931,31]
[312418171,1705863140026,-500.0,0.00044931,31]
[312418172,1705863140040,-879.17,0.00044931,31]
[312418173,1705863140056,-702.2,0.00044931,31]
[312418174,1705863140081,-1512.38,0.00044931,31]
[312418175,1705863140096,-500.0,0.00044931,31]
[312418176,1705863140112,-3891.13,0.00044931,31]
[312418177,1705863140128,-500.0,0.00044931,31]
[312418178,1705863140144,-4210.98,0.00044931,31]
[312418179,1705863140162,-500.0,0.00044931,31]
[312418180,1705863140177,-1010.5,0.00044931,31]
[312418181,1705863140195,-500.0,0.00044931,31]
[312418182,1705863140210,-5113.55,0.00044931,31]
[312418183,1705863140227,-5553.41,0.00044931,31]
[312418184,1705863140244,-500.0,0.00044931,31]
[312418185,1705863140260,-2021.88,0.00044931,31]
[312418186,1705863140277,-831.35,0.00044931,31]
[312418187,1705863140294,-500.0,0.00044931,31]
[312418188,1705863140310,-158.04194682,0.00044931,31]
[312418189,1705863140326,-1451.78,0.00044931,31]
[312418190,1705863140342,-2047.15,0.00044931,31]
[312418191,1705863140358,-500.0,0.00044931,31]
[312418192,1705863140374,-500.0,0.00044931,31]
[312418193,1705863140390,-500.0,0.00044931,31]
[312418194,1705863140404,-928.47,0.00044931,31]
[312418195,1705863140420,-1645.64,0.00044931,31]
[312418196,1705863140436,-1009.2,0.00044931,31]
[312418197,1705863140453,-1721.6,0.00044931,31]
[312418198,1705863140469,-507.02,0.00044931,31]
[312418199,1705863140484,-500.0,0.00044931,31]
[312418200,1705863140500,-833.04,0.00044931,31]
[312418201,1705863140516,-500.0,0.00044931,31]
[312418202,1705863140532,-853.75,0.00044931,31]
[312418203,1705863140547,-3752.11,0.00044931,31]
[312418204,1705863140562,-1139.83,0.00044931,31]
[312418205,1705863140872,-2604.2,0.00044931,31]
[312418206,1705863140893,-1000.0,0.00044931,30]
[312418207,1705863140903,-3344.19,0.00044931,31]
[312418208,1705863140913,-656.95,0.00044931,31]
[312418209,1705863140923,-500.0,0.00044931,31]
[312418210,1705863140932,-500.0,0.00044931,31]
[312418211,1705863140942,-1369.33,0.00044931,31]
[312418212,1705863140951,-500.0,0.00044931,31]
[312418213,1705863140960,-500.0,0.00044931,31]
[312418214,1705863140970,-2125.69,0.00044931,31]
[312418215,1705863140979,-2177.35,0.00044931,31]
[312418216,1705863140988,-523.94,0.00044931,31]
[312418217,1705863140997,-1442.9,0.00044931,31]
[312418218,1705863141007,-1712.99,0.00044931,31]
[312418219,1705863141016,-500.0,0.00044931,31]
[312418220,1705863141026,-1404.4,0.00044931,31]
[312418221,1705863141035,-500.0,0.00044931,31]
[312418222,1705863141044,-500.0,0.00044931,31]
[312418223,1705863141053,-500.0,0.00044931,31]
[312418224,1705863141063,-504.9,0.00044931,31]
[312418225,1705863141073,-1360.45,0.00044931,31]
[312418226,1705863141083,-500.0,0.00044931,31]
[312418227,1705863141093,-989.76,0.00044931,31]
[312418228,1705863141103,-500.0,0.00044931,31]
[312418229,1705863141113,-2806.49,0.00044931,31]
[312418230,1705863141122,-1242.78,0.00044931,31]
[312418231,1705863141131,-10132.2,0.00044931,31]
[312418232,1705863141141,-500.0,0.00044931,31]
[312418233,1705863141150,-627.09,0.00044931,31]
[312418234,1705863141160,-2496.9,0.00044931,31]
[312418235,1705863141170,-500.0,0.00044931,31]
[312418236,1705863141180,-3890.38,0.00044931,31]
[312418237,1705863141190,-1097.31,0.00044931,31]
[312418238,1705863141200,-500.0,0.00044931,31]
[312418239,1705863141209,-4035.88,0.00044931,31]
[312418240,1705863141219,-1353.68,0.00044931,31]
[312418241,1705863141229,-10189.15,0.00044931,31]
[312418242,1705863141240,-500.0,0.00044931,31]
[312418243,1705863141250,-775.43,0.00044931,31]
[312418244,1705863141259,-4930.09,0.00044931,31]
[312418245,1705863141269,-500.0,0.00044931,2]
[312418246,1705863141279,-500.0,0.00044931,31]
[312418247,1705863141289,-500.0,0.00044931,10]
[312418248,1705863141299,-500.0,0.00044931,31]
[312418249,1705863141309,-500.0,0.00044931,31]
[312418250,1705863141319,-4049.62,0.00044931,31]
[312418251,1705863141329,-500.0,0.00044931,31]
[312418252,1705863141338,-678.75,0.00044931,31]
[312418253,1705863141347,-500.0,0.00044931,31]
[312418254,1705863141356,-1229.34,0.00044931,31]
[312418255,1705863141366,-500.0,0.00044931,31]
[312418256,1705863141375,-3443.53,0.00044931,31]
[312418257,1705863141385,-150.0,0.00044935,2]
[312418258,1705863141394,-500.0,0.0004494,10]
[312418259,1705863141404,-500.0,0.0004496,10]
[312418260,1705863141413,-1500.0,0.00044961,2]
[312418261,1705863141423,-155.03181256,0.00044975,30]
[312418262,1705863141432,-719.27483957,0.0004498,3]
[312418263,1705863141442,-152.4107704,0.0004498,3]
[312418264,1705863141451,-500.0,0.0004498,10]
[312418265,1705863141460,-1282.0,0.00044982,30]
[312418266,1705863141469,-313.0,0.00044982,30]
[312418267,1705863141479,-355.40143417,0.00044983,30]
[312418268,1705863141488,-5000.0,0.00044986,4]
[312418269,1705863141498,-200.0,0.00044987,38]
[312418270,1705863141508,-200.0,0.00044987,64]
[312418271,1705863141517,-1507.17070805,0.00045,120]
[312418272,1705863141527,-500.42458942,0.00045,120]
[312418273,1705863141536,-569.50406554,0.00045,60]
[312418274,1705863141546,-945.87971938,0.00045,30]
[312418275,1705863141556,-2110.0,0.00045,15]
[312418276,1705863141565,-300.0,0.00045,46]
[312418277,1705863141575,-2572.0,0.00045,30]
[312418278,1705863141585,-500.0,0.00045,10]
[312418279,1705863141594,-423385.35649038,0.00045,10]
[312418280,1705863141604,-1500.0,0.00045,2]
[312418281,1705863141613,-173076.8001058,0.00045,30]
[312418282,1705863141623,-278.97740135,0.00045015,2]
[312418283,1705863141633,-893.41319272,0.00045033,2]
[312418284,1705863141642,-150.0,0.00045035,2]
[312418285,1705863141652,-153.08207228,0.00045038,30]
[312418286,1705863141663,-1500.0,0.00045041,2]
[312418287,1705863141675,-1217.49,0.00045041,31]
[312418288,1705863141684,-1217.49,0.00045041,31]
[312418289,1705863141693,-1217.49,0.00045041,31]
[312418290,1705863141702,-1217.49,0.00045041,31]
[312418291,1705863141713,-1217.49,0.00045041,31]
[312418292,1705863141722,-1217.49,0.00045041,31]
[312418293,1705863141731,-1217.49,0.00045041,31]
[312418294,1705863141741,-1217.49,0.00045041,31]
[312418295,1705863141750,-150.0,0.00045056,2]
[312418296,1705863141760,-153.17770273,0.00045056,30]
[312418297,1705863141769,-150.0,0.00045057,2]
[312418298,1705863141778,-150.0,0.0004506,2]
[312418299,1705863141788,-150.0,0.00045085,2]
[312418300,1705863141797,-150.0,0.00045087,2]
[312418301,1705863141807,-150.0,0.00045091,2]
[312418302,1705863141816,-150.0,0.00045096,2]
[312418303,1705863141825,-300.0,0.00045103,2]
[312418304,1705863141835,-150.0,0.00045104,2]
[312418305,1705863141845,-1500.0,0.00045113,2]
[312418306,1705863141854,-150.0,0.00045119,2]
[312418307,1705863141863,-300.0,0.0004512,2]
[312418308,1705863141872,-451.07,0.00045124,2]
[312418309,1705863141880,-150.0,0.00045129,2]
[312418310,1705863141890,-150.0,0.00045142,2]
[312418311,1705863141899,-153.08207229,0.00045148,30]
[312418312,1705863141908,-381.91,0.00045149,2]
[312418313,1705863141917,-150.0,0.00045157,2]
[312418314,1705863141925,-202.0,0.0004516,27]
[312418315,1705863141935,-150.0,0.00045163,2]
[312418316,1705863141944,-150.0,0.00045165,2]
[312418317,1705863141953,-1500.0,0.00045186,2]
[312418318,1705863141962,-1500.0,0.00045186,2]
[312418319,1705863141972,-150.0,0.00045187,2]
[312418320,1705863141981,-302.0,0.00045199,4]
[312418321,1705863141990,-1000.0,0.00045205,2]
[312418322,1705863142000,-1500.0,0.00045205,2]
[312418323,1705863142009,-150.96,0.00045206,2]
[312418324,1705863142018,-150.0,0.00045211,2]
[312418325,1705863142028,-150.0,0.00045212,2]
[312418326,1705863142037,-150.0,0.0004522,2]
[312418327,1705863142047,-150.0,0.00045226,2]
[312418328,1705863142056,-953.43125265,0.00045237,30]
[312418329,1705863142065,-300.0,0.00045244,2]
[312418330,1705863142074,-150.0,0.00045245,2]
[312418331,1705863142083,-150.0,0.00045254,2]
[312418332,1705863142092,-150.0,0.00045255,2]
[312418333,1705863142102,-150.0,0.00045257,2]
[312418334,1705863142111,-1500.0,0.00045262,2]
[312418335,1705863142121,-158.35520819,0.00045263,30]
[312418336,1705863142130,-150.0,0.00045271,2]
[312418337,1705863142140,-150.0,0.00045274,2]
[312418338,1705863142149,-150.0,0.00045274,5]
[312418339,1705863142159,-151.13019096,0.00045277,30]
[312418340,1705863142168,-152.0,0.00045278,5]
[312418341,1705863142178,-150.0,0.00045278,2]
[312418342,1705863142187,-155.03181261,0.00045278,30]
[312418343,1705863142197,-364.73162279,0.00045284,14]
[312418344,1705863142206,-181.63371409,0.00045284,14]
[312418345,1705863142216,-248.61643646,0.00045284,14]
[312418346,1705863142226,-276.18212841,0.00045284,14]
[312418347,1705863142236,-218.49632604,0.00045284,14]
[312418348,1705863142244,-150.0,0.00045289,2]
[312418349,1705863142254,-512.27818094,0.00045297,5]
[312418350,1705863142263,-157.0,0.000453,30]
[312418351,1705863142272,-150.0,0.00045305,2]
[312418352,1705863142281,-150.0,0.00045308,2]
[312418353,1705863142290,-150.0,0.00045309,2]
[312418354,1705863142300,-150.0,0.00045314,2]
[312418355,1705863142309,-150.0,0.00045314,2]
[312418356,1705863142318,-150.0,0.00045319,2]
[312418357,1705863142328,-166.5419951,0.00045327,30]
[312418358,1705863142338,-1500.0,0.00045329,2]
[312418359,1705863142348,-150.0,0.00045332,2]
[312418360,1705863142357,-150.0,0.00045343,2]
[312418361,1705863142366,-150.0,0.00045343,2]
[312418362,1705863142376,-300.0,0.00045361,2]
[312418363,1705863142386,-1500.0,0.00045367,2]
[312418364,1705863142394,-1500.0,0.00045368,2]
[312418365,1705863142403,-1500.0,0.0004538,2]
[312418366,1705863142413,-1810.0,0.0004539,3]
[312418367,1705863142423,-150.0,0.00045392,2]
[312418368,1705863142433,-150.0,0.000454,2]
[312418369,1705863142442,-293.29955994,0.00045412,2]
[312418370,1705863142452,-152.14113685,0.00045423,30]
[312418371,1705863142461,-1282.0,0.00045423,30]
[312418372,1705863142470,-313.0,0.00045423,30]
[312418373,1705863142480,-300.0,0.00045427,2]
[312418374,1705863142489,-150.0,0.00045429,2]
[312418375,1705863142499,-198.50076002,0.00045436,2]
[312418376,1705863142507,-300.0,0.00045443,2]
[312418377,1705863142516,-150.0,0.00045454,2]
[312418378,1705863142526,-300.0,0.0004546,2]
[312418379,1705863142535,-4000.0,0.00045463,7]
[312418380,1705863142545,-1500.0,0.00045464,2]
[312418381,1705863142554,-150.0,0.00045476,2]
[312418382,1705863142563,-1000.0,0.00045478,30]
[312418383,1705863142573,-500.0,0.00045479,5]
[312418384,1705863142582,-555.52,0.00045479,31]
[312418385,1705863142591,-500.0,0.00045479,31]
[312418386,1705863142601,-404.46638687,0.00045479,7]
[312418387,1705863142610,-664.7,0.00045479,2]
[312418388,1705863142620,-503.87,0.00045479,31]
[312418389,1705863142629,-552.56,0.00045479,31]
[312418390,1705863142639,-548.42,0.00045479,31]
[312418391,1705863142650,-500.0,0.00045479,31]
[312418392,1705863142659,-500.0,0.00045479,31]
[312418393,1705863142670,-545.31,0.00045479,31]
[312418394,1705863142686,-500.0,0.00045479,31]
[312418395,1705863142696,-609.33,0.00045479,31]
[312418396,1705863142705,-500.0,0.00045479,31]
[312418397,1705863142716,-500.0,0.00045479,31]
[312418398,1705863142725,-534.84,0.00045479,31]
[312418399,1705863142734,-500.0,0.00045479,31]
[312418400,1705863142743,-983.24,0.00045479,31]
[312418401,1705863142753,-500.0,0.00045479,31]
[312418402,1705863142763,-500.0,0.00045479,31]
[312418403,1705863142772,-500.0,0.00045479,31]
[312418404,1705863142782,-500.0,0.00045479,31]
[312418405,1705863142791,-540.33,0.00045479,31]
[312418406,1705863142800,-500.0,0.00045479,31]
[312418407,1705863142809,-622.72,0.00045479,31]
[312418408,1705863142818,-500.0,0.00045479,31]
[312418409,1705863142828,-500.0,0.00045479,31]
[312418410,1705863142837,-500.0,0.00045479,31]
[312418411,1705863142846,-500.0,0.00045479,31]
[312418412,1705863142854,-503.52566593,0.00045479,31]
[312418413,1705863142863,-553.34,0.00045479,31]
[312418414,1705863142872,-500.0,0.00045479,31]
[312418415,1705863142882,-547.07,0.00045479,31]
[312418416,1705863142891,-500.0,0.00045479,31]
[312418417,1705863142900,-540.68,0.00045479,31]
[312418418,1705863142909,-500.0,0.00045479,31]
[312418419,1705863142918,-215.45740628,0.00045479,31]
[312418420,1705863142927,-662.98,0.00045479,20]
[312418421,1705863142936,-500.0,0.00045479,31]
[312418422,1705863142945,-500.0,0.00045479,31]
[312418423,1705863142954,-1000.0,0.00045479,2]
[312418424,1705863142963,-500.0,0.00045479,31]
[312418425,1705863142972,-679.87,0.00045479,31]
[312418426,1705863142981,-500.0,0.00045479,31]
[312418427,1705863142990,-500.0,0.00045479,31]
[312418428,1705863142999,-500.0,0.00045479,31]
[312418429,1705863143008,-801.92,0.00045479,31]
[312418430,1705863143017,-500.0,0.00045479,31]
[312418431,1705863143025,-500.0,0.00045479,31]
[312418432,1705863143036,-500.0,0.00045479,31]
[312418433,1705863143045,-556.67,0.00045479,31]
[312418434,1705863143054,-500.0,0.00045479,31]
[312418435,1705863143063,-500.0,0.00045479,31]
[312418436,1705863143073,-500.0,0.00045479,31]
[312418437,1705863143082,-500.0,0.00045479,31]
[312418438,1705863143091,-500.0,0.00045479,31]
[312418439,1705863143100,-628.07,0.00045479,31]